Cogmind - Beta 15 @@@ ROGUE MODE // 2025.10.18 @ 23:32:07 Player: Autumn Result: Destroyed by D-53 Grenadier with Mini Grenade Launcher Performance ------------- Evolutions (0) 0 Regions Visited (4) 800 Robots Destroyed (7) 35 Value Destroyed (101) 101 Prototype IDs (24) 480 Alien Tech Used (0) 0 Bonus (300) 300 TOTAL SCORE: 1716 Bonus ------- Aligned with FarCom 300 Cogmind --------- Core Integrity 0/250 Matter 300/300 Energy 33/125 System Corruption 10% Temperature Cool (0) Movement Core (400) Ox7 Location -9/Mines Parts ------- > --- POWER (1) -------- Light Ion Engine > --- PROPULSION (2) --- (None) > --- UTILITY (2) ------ Large Storage Unit > --- WEAPON (2) ------- (None) > --- INVENTORY (15) --- Improved Treads Improved Treads Huge Storage Unit Weight Redist. System 0b10 Alert Chip Targeting Computer Shield Generator Grenade Launcher Datajack Mining Laser Peak State ------------ > --- POWER ------------ Light Ion Engine > --- PROPULSION ------- Improved Treads Improved Treads > --- UTILITY ---------- Small Storage Unit Shield Generator > --- WEAPON ----------- Advanced Beam Cannon Autogun > --- INVENTORY -------- Improved Treads Improved Treads Huge Storage Unit Shield Generator Small Laser Assault Rifle Datajack Mining Laser [Rating: 14] Favorites ----------- Power Light Ion Engine Engine Light Ion Engine Propulsion Improved Treads Treads Improved Treads Utility Shield Generator Device Shield Generator Storage Large Storage Unit Weapon Autogun Energy Cannon Advanced Beam Cannon Ballistic Gun Autogun Build | -11 -10 -10 -10 -9 ------- Run | Yrd Mat Min Exi Min Slots Evolved . | . . . . . Power . | . . . . . Propulsion . | . . . . . Utility . | . . . . . Weapon . | . . . . . Parts Attached 15 | 5 10 . . . Power 2 | 1 1 . . . Engine 2 | 1 1 . . . Core . | . . . . . Reactor . | . . . . . Propulsion 4 | 2 2 . . . Treads 4 | 2 2 . . . Leg . | . . . . . Wheel . | . . . . . Hover . | . . . . . Flight . | . . . . . Utility 3 | 1 2 . . . Device 1 | . 1 . . . Storage 2 | 1 1 . . . Processor . | . . . . . Hackware . | . . . . . Protection . | . . . . . Artifact . | . . . . . Weapon 6 | 1 5 . . . Energy Gun . | . . . . . Energy Cannon 2 | . 2 . . . Ballistic Gun 4 | 1 3 . . . Ballistic Cannon . | . . . . . Launcher . | . . . . . Special Weapon . | . . . . . Impact Weapon . | . . . . . Slashing Weapon . | . . . . . Piercing Weapon . | . . . . . Special Melee Weapon . | . . . . . Unidentified Prototypes 1 | . 1 . . . Parts Lost 5 | . . . . 5 Power . | . . . . . Propulsion 2 | . . . . 2 Utility 1 | . . . . 1 Weapon 2 | . . . . 2 Highest Loss Streak 5 | . . . . 5 To Critical Strikes . | . . . . . Average Backups 7 | 2 6 9 9 10 Power . | . . . . . Propulsion 1 | . 1 2 2 2 Utility 3 | . 2 4 4 5 Weapon 1 | 1 1 2 2 2 Tool/Special . | . . . . . Unused Backups 11 | . 1 . . 10 Power . | . . . . . Propulsion 2 | . . . . 2 Utility 5 | . . . . 5 Weapon 3 | . 1 . . 2 Tool/Special 1 | . . . . 1 Average Slot Usage (%) 98 | . 97 100 100 97 Engine 14 | . 14 14 14 14 Treads 27 | . 28 28 28 26 Device 12 | . 12 14 14 14 Storage 14 | . 14 14 14 14 Energy Cannon 1 | . 2 . . . Ballistic Gun 25 | . 24 28 28 27 Peak Build Rating 14 | 5 14 13 13 13 Average Rating 11 | 3 11 13 13 12 On Entrance 8 | . 5 13 13 13 Naked Turns . | . . . . . Heaviest Build 31 | 12 31 31 31 31 Greatest Support 46 | 40 46 46 46 46 Greatest Overweight (x) . | . . . . . Average Overweight (x) . | . . . . . Largest Inventory Capacity 15 | 8 15 15 15 15 Average Capacity 12 | 6 12 15 15 15 Most Carried 10 | 5 9 9 10 10 Average Carried 7 | 2 6 9 9 10 Final Capacity 15 | 8 15 15 15 15 Final Carried 10 | 3 9 9 10 10 Class Distribution -------------------- 100% | Mutant Dominant Class ---------------- Mutant | -10/Materials Mutant | -10/Mines Mutant | -10/Exiles Mutant | -9/Mines Resources | -11 -10 -10 -10 -9 ----------- Run | Yrd Mat Min Exi Min Matter Collected 476 | 169 307 . . . Remotely . | . . . . . Salvage Created 220 | . 200 . . 20 Parts 12 | . 12 . . . Haulers Intercepted 1 | . 1 . . . Recyclers Shooed . | . . . . . Parts Field Recycled . | . . . . . Retrieved Matter . | . . . . . Parts Self-Destructed . | . . . . . Prevented . | . . . . . Kills | -11 -10 -10 -10 -9 ------- Run | Yrd Mat Min Exi Min Combat Hostiles Destroyed 6 | . 5 . . 1 Guns 5 | . 4 . . 1 Cannons 1 | . 1 . . . Classes Destroyed 5 | . 3 . . 2 Worker 1 | . . . . 1 Hauler 1 | . 1 . . . Swarmer 3 | . 3 . . . Grunt 2 | . 2 . . . Assembled 1 | . . . . 1 Best Kill Streak 3 | . 3 . . 2 Combat Bots Only 3 | . 3 . . 1 Max Kills in Single Turn 2 | . 2 . . 1 Gunslinging 1 | . 1 . . . Exploded . | . . . . . Melee . | . . . . . Uniques/NPCs Destroyed . | . . . . . Combat | -11 -10 -10 -10 -9 -------- Run | Yrd Mat Min Exi Min Hostile Shots Fired 52 | . 13 . . 39 Missed 17 | . 4 . . 13 Hits 35 | . 9 . . 26 Melee 2 | . . . . 2 Projectile 33 | . 9 . . 24 AOE 15 | . . . . 15 Damage Taken 944 | . 66 . . 878 Core 253 | . . . . 253 Absorbed by Shields 105 | . 26 . . 79 Core Remaining (%) 100 | 100 . . . . Volleys Fired 19 | . 18 . . 1 Largest 2 | . 2 . . 2 Hottest 88 | . 88 . . 46 Shots Fired 38 | . 36 . . 2 Gun 36 | . 34 . . 2 Cannon 2 | . 2 . . . Launcher . | . . . . . Special . | . . . . . Kinetic 36 | . 34 . . 2 Thermal 2 | . 2 . . . Explosive . | . . . . . Electromagnetic . | . . . . . Robot Hit Streak 16 | . 16 . . 8 Robot Miss Streak 3 | . 3 . . . Penetration Max . | . . . . . Secondary Targets 1 | . 1 . . . Max Gunslinging Chain 1 | . 1 . . . Shots Hit Robots 27 | . 25 . . 2 Core Hits 10 | . 8 . . 2 Critical Kills 1 | . . . . 1 Critical Parts Destroyed . | . . . . . Critical Strikes 1 | . . . . 1 Destroy 1 | . . . . 1 Melee Attacks . | . . . . . Impact . | . . . . . Slashing . | . . . . . Piercing . | . . . . . Sneak Attacks . | . . . . . Combat Hostiles . | . . . . . Follow-up Attacks . | . . . . . Damage Inflicted 410 | . 372 . . 38 Guns 363 | . 331 . . 32 Cannons 41 | . 41 . . . Explosions . | . . . . . Melee . | . . . . . Ramming 6 | . . . . 6 Kinetic 363 | . 331 . . 32 Thermal 41 | . 41 . . . Explosive . | . . . . . Electromagnetic . | . . . . . Impact . | . . . . . Slashing . | . . . . . Piercing . | . . . . . Highest Corruption 10 | . . . . 10 Average Corruption 10 | . . . . 10 Corruption Purged . | . . . . . Corruption Blocked . | . . . . . Overload Shots . | . . . . . Overflow Damage . | . . . . . Projectiles . | . . . . . Explosions . | . . . . . Melee . | . . . . . Knockbacks . | . . . . . Impact . | . . . . . Kinetic . | . . . . . Secondary . | . . . . . Self-Inflicted Damage . | . . . . . Shots . | . . . . . Rammed 1 | . . . . 1 Targets Rammed 2 | . . . . 2 Kicked . | . . . . . Crushed 1 | . . . . 1 Highest Temperature 58 | . 58 . . 6 Average Temperature 11 | . 12 . . 4 Received Heat Transfer 20 | . 20 . . . Siege Activations . | . . . . . Martial Activations . | . . . . . Shielding Activations . | . . . . . Robots Disrupted . | . . . . . Combat Hostiles . | . . . . . Robots Corrupted . | . . . . . Combat Hostiles . | . . . . . Parts Fried . | . . . . . Impact Corruptions . | . . . . . Robots Melted . | . . . . . Combat Hostiles . | . . . . . Parts Melted . | . . . . . Heat Transferred 74 | . 74 . . . Parts Sabotaged . | . . . . . Parts Stolen . | . . . . . Parts Stripped . | . . . . . Power Chain Reactions . | . . . . . Alert | -11 -10 -10 -10 -9 ------- Run | Yrd Mat Min Exi Min Maximum Alert Level . | . . . . . Low Security (%) 100 | 100 100 100 . 100 Level 1 . | . . . . . Level 2 . | . . . . . Level 3 . | . . . . . Level 4 . | . . . . . Level 5 . | . . . . . High Security . | . . . . . Max Security . | . . . . . Peak Influence 70 | . 70 . . 5 Initial . | . . . . . Average 5 | . 6 . . . Influence Increases 142 | . 137 . . 5 Destroy 0b10 Robot/C 100 | . 100 . . . Destroy 0b10 Robot/NC 10 | . 5 . . 5 Destroy Leader 32 | . 32 . . . Influence Decreases 142 | . 137 . . 5 Time Decay 142 | . 137 . . 5 Squads Dispatched 2 | . 2 . . . Investigation 2 | . 2 . . . Extermination . | . . . . . Reinforcement . | . . . . . Assault . | . . . . . Garrison . | . . . . . Intercept . | . . . . . Searches Triggered . | . . . . . Construction Impeded . | . . . . . Haulers Reinforced . | . . . . . Active Scanning Responses . | . . . . . Cargo Convoy Interrupts . | . . . . . Stealth | -11 -10 -10 -10 -9 --------- Run | Yrd Mat Min Exi Min Distress Signals . | . . . . . Communications Jammed . | . . . . . Distress Signals . | . . . . . Times Spotted 23 | . 7 . . 16 Peak Tracking Total 7 | . 3 . . 7 Tactical Retreats . | . . . . . Traps | -11 -10 -10 -10 -9 ------- Run | Yrd Mat Min Exi Min Traps Triggered 2 | . 2 . . . Indirectly . | . . . . . Trap Hack Attempts . | . . . . . Triggered . | . . . . . Disarmed . | . . . . . Reprogrammed . | . . . . . Reused . | . . . . . Traps Extracted . | . . . . . Installed . | . . . . . Triggered . | . . . . . Machines | -11 -10 -10 -10 -9 ---------- Run | Yrd Mat Min Exi Min Machines Disabled . | . . . . . Max in Single Turn . | . . . . . Machines Repaired . | . . . . . Machines Dismantled . | . . . . . Machines Sabotaged . | . . . . . Overloaded Fab Kills . | . . . . . Hacking | -11 -10 -10 -10 -9 --------- Run | Yrd Mat Min Exi Min Machines Accessed 1 | . . . 1 . Terminals . | . . . . . Fabricators . | . . . . . Repair Stations . | . . . . . Recycling Units . | . . . . . Scanalyzers . | . . . . . Garrison Access . | . . . . . Total Hacks 1 | . . . 1 . Successful 1 | . . . 1 . Failed . | . . . . . Catastrophic . | . . . . . Database Lockouts . | . . . . . Manual 1 | . . . 1 . Terminals . | . . . . . Fabricators . | . . . . . Repair Stations . | . . . . . Recycling Units . | . . . . . Scanalyzers . | . . . . . Garrison Access . | . . . . . Terminal Hacks 1 | . . . 1 . Proto ID Catalog 1 | . . . 1 . Fabricator Hacks . | . . . . . Repair Station Hacks . | . . . . . Recycling Unit Hacks . | . . . . . Scanalyzer . | . . . . . Garrison Access Hacks . | . . . . . Unauthorized Hacks . | . . . . . Terminals . | . . . . . Fabricators . | . . . . . Repair Stations . | . . . . . Recycling Units . | . . . . . Scanalyzers . | . . . . . Garrison Access . | . . . . . Data Cores Recovered . | . . . . . Used . | . . . . . Hacking Detections . | . . . . . Full Trace Events . | . . . . . Feedback Events . | . . . . . Feedback Blocked . | . . . . . Robot Schematics Acquired . | . . . . . Robots Built . | . . . . . Authchips . | . . . . . Time . | . . . . . Total Robot Build Rating . | . . . . . Part Schematics Acquired . | . . . . . Parts Built . | . . . . . Authchips . | . . . . . Time . | . . . . . Total Part Build Rating . | . . . . . Parts Repaired . | . . . . . Time . | . . . . . Parts Recycled . | . . . . . Recycled Matter . | . . . . . Retrieved Matter . | . . . . . Retrieved Components . | . . . . . Parts Scanalyzed . | . . . . . Part Schematics Acquired . | . . . . . Parts Damaged . | . . . . . Bothacking | -11 -10 -10 -10 -9 ------------ Run | Yrd Mat Min Exi Min Used RIF Installer . | . . . . . Robots Hacked . | . . . . . Non-combat . | . . . . . Combat . | . . . . . Robot Hacks Applied . | . . . . . Relay Couplers Released . | . . . . . Fabnet Peak Effective % . | . . . . . Robots Rewired . | . . . . . Allies Hacked . | . . . . . Hacks Repelled . | . . . . . Allies | -11 -10 -10 -10 -9 -------- Run | Yrd Mat Min Exi Min Total Allies . | . . . . . Largest Group . | . . . . . Highest-Rated Group . | . . . . . Highest-Rated Ally . | . . . . . Total Orders . | . . . . . Ally Attacks . | . . . . . Total Damage . | . . . . . Kills . | . . . . . Allies Corrupted . | . . . . . Allies Melted . | . . . . . Intel | -11 -10 -10 -10 -9 ------- Run | Yrd Mat Min Exi Min Active Infowar (turns) . | . . . . . Robot Analysis Total . | . . . . . Derelict Logs Recovered 2 | . . . . 2 Drone Launches . | . . . . . Drone Recoveries . | . . . . . Exploration | -11 -10 -10 -10 -9 ------------- Run | Yrd Mat Min Exi Min Turns Passed 2721 | 142 1760 192 483 144 Spaces Moved 1627 | 83 1050 121 302 71 Core 8 | 8 . . . . Treads 1619 | 75 1050 121 302 71 Legs . | . . . . . Wheels . | . . . . . Hover . | . . . . . Flight . | . . . . . Fastest Speed 50 | 50 160 160 160 160 Average Speed 159 | 149 160 160 160 160 Slowest Speed 160 | 160 160 160 160 160 Overloaded Moves . | . . . . . Propulsion Burnouts . | . . . . . Robots Hopped . | . . . . . Potential Cave-ins . | . . . . . Cave-ins Triggered 1 | . . . . 1 Exploration Rate (%) 37 | 6 99 20 43 21 Regions Visited 4 Branch Regions 3 Pre-discovered Areas . | . . . . . Known Exits Taken . | . . . . . Unknown Exits Taken 4 | 1 1 1 1 . Scrap Searched . | . . . . . Spaces Dug . | . . . . . Terrain Destroyed . | . . . . . Melee . | . . . . . Projectile . | . . . . . AOE . | . . . . . Terrain Rammed . | . . . . . Walls Destroyed . | . . . . . Machines Disabled . | . . . . . Actions | -11 -10 -10 -10 -9 --------- Run | Yrd Mat Min Exi Min Total 1724 | 101 1103 120 302 98 Wait 30 | 6 . . . 24 Move 1623 | 82 1049 120 301 71 Hop . | . . . . . Pick Up 26 | 8 17 . 1 . Fast Attach . | . . . . . Attach 9 | 5 4 . . . Detach . | . . . . . Swap 6 | . 6 . . . Drop 9 | . 9 . . . Fire 19 | . 18 . . 1 Melee . | . . . . . Ram . | . . . . . Kick . | . . . . . Crush 2 | . . . . 2 Escape Stasis . | . . . . . Rewire . | . . . . . Trap . | . . . . . Miscellaneous . | . . . . . Route ------- -11/Scrapyard -10/Materials (discovered 5 exits: [*Mat x3] / [*Min x2]) -10/Mines -10/Exiles -9/Mines History --------- Turn | Location | Event 15 | -11/Scrapyard | Discovered new exit (range 14) 143 | -11/Scrapyard | Entered Materials 204 | -10/Materials | Discovered new exit (range 15) 258 | -10/Materials | Met 8R-AWN 305 | -10/Materials | Build established: Mutant 311 | -10/Materials | Discovered new exit (range 12) 624 | -10/Materials | Discovered new exit (range 16) 958 | -10/Materials | Discovered new exit (range 5) 1510 | -10/Materials | Discovered new exit (range 7) 1903 | -10/Materials | Entered Mines 1905 | -10/Mines | Followed 8R-AWN into the Mines 1929 | -10/Mines | Met a Derelict bent on vengeance 2086 | -10/Mines | Discovered new exit (range 5) 2095 | -10/Mines | Entered Exiles 2134 | -10/Exiles | Discovered new exit (range 15) 2159 | -10/Exiles | Welcomed by 8R-AWN 2198 | -10/Exiles | Met EX-HEX 2265 | -10/Exiles | Met EX-BIN 2300 | -10/Exiles | Aligned with FarCom system 2302 | -10/Exiles | Given EX-Vault access code 2353 | -10/Exiles | Opened EX-Vault 2369 | -10/Exiles | Found 0b10 Alert Chip 2432 | -10/Exiles | Warned to stay clear of 0b10 Research branches 2525 | -10/Exiles | Learned about 8R-AWN's background 2578 | -10/Exiles | Left Exiles lab with 0b10 Alert Chip 2578 | -10/Exiles | Entered Mines 2598 | -9/Mines | Learned Materials emergency access door positions 2670 | -9/Mines | Assembled infested the area 2671 | -9/Mines | Learned 4 Materials zone layouts 2675 | -9/Mines | Assisted by a Guerilla fighting off Assembled 2716 | -9/Mines | Crushed by falling debris 2716 | -9/Mines | Core integrity fell below 50% 2716 | -9/Mines | System corruption reached 10% 2721 | -9/Mines | Core integrity fell below 20% 2722 | -9/Mines | Destroyed by D-53 Grenadier with Mini Grenade Launcher Last Messages --------------- as-38922 destroyed. U-05 Engineer builds a Wall. The unstable cave ceiling collapses. as-04936 destroyed. The unstable cave ceiling collapses. Crushed by falling debris. Autogun destroyed. System corrupted by crushing effect (+5). Imp. Treads destroyed. System corrupted by crushing effect (+5). as-58334 destroyed. U-05 Engineer lays Concrete. U-05 Engineer builds a Wall. as-41856 destroyed. as-66252 destroyed. as-46055 destroyed. Imp. Treads destroyed. Shield Generator destroyed. Autogun destroyed. The unstable cave ceiling collapses. Map ----- +----------------------------------------------------+ | ?????????????????????????????????????????????????? | | ?????????????????????????????????????????????????? | | ?????????????????????????????????????????????????? | | ?????????????????????????????????????????????????? | | ?????????????????????????????????????????????????? | | ?????????????????????????????????????????????????? | | ?????????????????????????????????????????????????? | | ?????????????????????????????????????????????????? | | ?????????????????????????????????????????????????? | | ?????????????????????????????????????????????????? | | ?????????????????????????????????????????????????? | | ?????????????????????????????????????????????????? | | ?????????????????????????????????????????????????? | | ?????????????????????????????#???????????????????? | | ??????????????????????###### ######### #?????????? | | ?????????????????????## # #### $ #?????????? | | ????????????????????## % ########?????????? | | ?????????????????#### #### #????????????????? | | ?????????????????# ### #????????????????? | | ?????????????????## ## #????????????????? | | ?????????????????# # # #??????##????????? | | ????????????????## d # ###??? #????????? | | ???????????????## ## ##? #????????? | | ?????????????### ## ##???????? | | ?????????????# d ##??????? | | ???????????# @ #??????? | | ???????????# #??????? | | ?????????# ## ### #??????? | | ?????????# # ### ##??? ##??????? | | ????????????# ## #####?##???????? | | ???????????? a #### # #??????????? | | ???????????? ???## # #??????????? | | ???????????? ?????# ##### ############ | | ??????????? ??????# #??# ## | | ???????????? a## ???????? #?# """ | | ???????????????##????????? #?##### """ | | ?????????????????????????? ##?????# """ | | ??????????????????????????# ###??????# | | ???????????????????????????####????????# | | ???????????????????????????????????????########### | | ?????????????????????????????????????????????????? | | ?????????????????????????????????????????????????? | | ?????????????????????????????????????????????????? | | ?????????????????????????????????????????????????? | | ?????????????????????????????????????????????????? | | | | | | | | | | | +----------------------------------------------------+ Best States ------------- Heat Dissipation 25 Energy Generation 10 Energy Capacity 250 Matter Stores 300 Matter Capacity 300 Sight Range 16 Terrain Scan Density 10 Evasion (%) 50 Recoil Reduction 2 Item Schematics ----------------- None Robot Schematics ------------------ None Fabricated ------------ Nothing Repaired ---------- Nothing Alien Tech Used ----------------- None Achievements -------------- None Challenges ------------ None Game ------ Seed MeleeSmallCompressor Manual? 0 Play Time 00:15:31 Cumulative 11.8 hours Start 2025.10.18 @ 23:17:53 End 2025.10.18 @ 23:32:07 Sessions 1 Manual Loads 0 Difficulty Rogue Special Mode None Game No. 29 Rogue 29 Adventurer 0 Explorer 0 Win Type - Total 0 Types 0/0/0/0/0/0/0/0/0/0 Lore% 13 Gallery% 19 Achievement% 16 Wizard Run 0 Options --------- Layout 1 ASCII 0 Keyboard 0 Movement Arrows Keybinds 0 Fullscreen 1 Font 24/Smallcaps Map View 76x35 Zoom Use 0% Tactical HUD 0 Map Filters NONE Filters NONE Steam 1 RUN: 5fccafcd-cfe1-4ef1-9c22-61e63915b8a4